Cogmind - Beta 12 @@@ ROGUE MODE // 2023.04.09 @ 19:08:21 Player: ZLD1 Result: Destroyed by X-77 Beamer with Gatling Laser Performance ------------- Evolutions (5) 2500 Regions Visited (15) 3000 Robots Destroyed (101) 505 Value Destroyed (4541) 4541 Prototype IDs (33) 660 Alien Tech Used (0) 0 Bonus (1240) 1240 TOTAL SCORE: 12446 Bonus ------- Follower Combat Kills 550 Network Hubs Disabled 400 Aligned with FarCom 300 Friendly Fire -10 Cogmind --------- Core Integrity 0/1000 Matter 61/300 Energy 95/100 System Corruption 25% Temperature Cool (12) Movement Core (500) Ox9 Location -5/Hub_04(d) Parts ------- > --- POWER (2) -------- (None) > --- PROPULSION (6) --- (None) > --- UTILITY (7) ------ Medium Storage Unit Improved Signal Interpreter Advanced Signal Interpreter Armor Integrity Analyzer Improved Field Recycling Unit > --- WEAPON (2) ------- Great Maul Chainsword > --- INVENTORY (10) --- Medium Storage Unit Heavy Flak Cannon Enhanced Gauss Cannon Advanced EMP Blaster Improved Datajack Chainsword Peak State ------------ > --- POWER ------------ Micro Fission Core Particle Reactor > --- PROPULSION ------- Medium Treads Medium Treads Medium Treads Armored Medium Treads Centrium Heavy Treads > --- UTILITY ---------- Improved Thermal Generator Medium Storage Unit Improved Signal Interpreter Advanced Signal Interpreter Melee Analysis Suite Armor Integrity Analyzer Centrium Medium Armor Plating > --- WEAPON ----------- Advanced KE Penetrator Mass Driver > --- INVENTORY -------- Quantum Reactor Medium Storage Unit Railgun Advanced KE Penetrator Heavy Flak Cannon Advanced EMP Blaster Improved Datajack Great Maul Chainsword Chainsword [Rating: 98] Favorites ----------- Power Light Ion Engine Engine Light Ion Engine Power Core Light Nuclear Core Reactor Particle Reactor Propulsion Aluminum Leg Treads Medium Treads Leg Aluminum Leg Hover Unit Antigrav System Flight Unit Improved Flight Unit Utility Medium Storage Unit Device Improved Sensor Array Storage Medium Storage Unit Processor Signal Interpreter Hackware Makeshift Hacking Suite Protection Centrium Medium Armor Plating Weapon Assault Rifle Energy Gun Beam Rifle Ballistic Gun Assault Rifle Ballistic Cannon Mass Driver Launcher Advanced EMP Blaster Impact Weapon Impact Mace Slashing Weapon Makeshift Sword Special Melee Weapon Improved Datajack Build | -11 -10 -10 -10 -9 -8 -8 -7 -7 -7 -6 -5 -5 -5 -5 -5 ------- Run | Jun Mat Min Exi Min Mat Sto Fac Low Low Fac Fac Ext Cet Arc Hub Slots Evolved 10 | . . . . . 4 . 2 . . 2 2 . . . . Power 1 | . . . . . . . 1 . . . . . . . . Propulsion 4 | . . . . . 2 . . . . 1 1 . . . . Utility 5 | . . . . . 2 . 1 . . 1 1 . . . . Weapon . | . . . . . . . . . . . . . . . . Parts Attached 171 | 6 2 . . 7 4 33 14 6 1 7 12 43 8 11 17 Power 26 | 1 . . . 1 . 5 2 2 . 2 1 6 1 1 4 Engine 12 | 1 . . . 1 . 3 2 . . 1 1 1 1 . 1 Core 12 | . . . . . . 2 . 2 . 1 . 5 . . 2 Reactor 2 | . . . . . . . . . . . . . . 1 1 Propulsion 58 | 2 . . . 4 1 14 4 3 . 1 6 16 1 3 3 Treads 6 | . . . . . . . . . . . . . 1 3 2 Leg 41 | 2 . . . 4 1 9 4 3 . 1 . 16 . . 1 Wheel . | . . . . . . . . . . . . . . . . Hover 10 | . . . . . . 4 . . . . 6 . . . . Flight 1 | . . . . . . 1 . . . . . . . . . Utility 33 | 1 2 . . . 2 4 4 1 1 2 3 6 3 . 4 Device 13 | . . . . . 1 3 3 . . . 1 1 1 . 3 Storage 6 | 1 1 . . . . . . . 1 1 1 . 1 . . Processor 8 | . 1 . . . . . 1 . . . 1 4 . . 1 Hackware 1 | . . . . . . . . 1 . . . . . . . Protection 5 | . . . . . 1 1 . . . 1 . 1 1 . . Artifact . | . . . . . . . . . . . . . . . . Weapon 54 | 2 . . . 2 1 10 4 . . 2 2 15 3 7 6 Energy Gun 6 | . . . . . . 4 . . . . . 1 . 1 . Energy Cannon . | . . . . . . . . . . . . . . . . Ballistic Gun 21 | 2 . . . 2 1 4 2 . . . 2 . 2 2 4 Ballistic Cannon 2 | . . . . . . . . . . . . . . 2 . Launcher 3 | . . . . . . 1 . . . . . . . 2 . Special Weapon . | . . . . . . . . . . . . . . . . Impact Weapon 14 | . . . . . . . 2 . . 2 . 9 . . 1 Slashing Weapon 3 | . . . . . . 1 . . . . . . 1 . 1 Piercing Weapon . | . . . . . . . . . . . . . . . . Special Melee Weapon 5 | . . . . . . . . . . . . 5 . . . Unidentified Prototypes 10 | . . . . . . 3 1 . . 1 1 1 3 . . Corrupted Parts 1 | . . . . . . . . . . . . . . . 1 System Corruption 7 | . . . . . . . . . . . . . . . 7 Parts Lost 73 | . . . . 2 1 11 6 5 3 . 3 14 10 . 18 Power 16 | . . . . . 1 1 1 1 2 . 2 2 1 . 5 Propulsion 30 | . . . . 1 . 4 2 3 1 . . 7 6 . 6 Utility 17 | . . . . . . 3 2 1 . . 1 5 2 . 3 Weapon 10 | . . . . 1 . 3 1 . . . . . 1 . 4 Highest Loss Streak 13 | . . . . 1 1 5 3 4 3 . 1 13 10 . 6 To Critical Strikes 4 | . . . . . . 2 . . . . . . 1 . 1 Average Slot Usage (%) 84 | . 95 100 100 99 84 92 82 79 62 60 92 75 68 79 82 Engine 5 | . 14 14 14 14 8 5 6 4 . . 4 2 2 5 1 Core 2 | . . . . . . 2 . 1 1 . 4 6 5 1 3 Treads 3 | . . . . . . . . . . . . . 2 14 20 Leg 18 | . 28 28 28 27 24 24 25 20 15 18 17 23 6 . . Hover 2 | . . . . . . 8 . . . . 13 1 . . . Device 4 | . . . . . 8 8 13 7 . . 4 1 3 5 4 Storage 7 | . 14 14 14 14 9 9 7 7 7 6 5 5 5 5 5 Processor 15 | . 10 14 14 14 9 9 13 15 15 13 15 13 23 23 23 Hackware 1 | . . . . . . . . 4 7 6 5 . . . . Protection 2 | . . . . . 6 5 . . . . 5 3 3 5 3 Energy Gun 1 | . . . . . . 2 7 . . . . . . . . Ballistic Gun 9 | . 28 28 28 27 18 10 4 . . . 2 1 4 5 4 Impact Weapon 3 | . . . . . . . 2 15 15 13 8 8 5 . . Naked Turns . | . . . . . . . . . . . . . . . . Heaviest Build 68 | 12 17 17 17 20 23 28 26 27 27 44 45 52 50 68 68 Greatest Support 191 | 20 20 20 20 20 30 55 60 75 75 78 78 123 100 164 191 Greatest Overweight (x) 16 | . . . . 1 1 3 . 1 . . 4 1 8 . 16 Average Overweight (x) . | . . . . . . . . . . . . . . . . Largest Inventory Capacity 10 | 8 10 10 10 10 10 10 10 10 10 10 10 10 10 10 10 Average Capacity 9 | 7 8 10 10 10 10 10 10 10 10 10 10 10 10 10 10 Most Carried 10 | 5 10 10 10 10 10 10 10 10 9 10 10 10 10 10 10 Average Carried 9 | 2 7 10 9 9 8 9 9 9 8 9 9 9 9 9 9 Final Capacity 10 | 8 10 10 10 10 10 10 10 10 10 10 10 10 10 10 10 Final Carried 10 | 4 10 10 10 10 10 10 10 8 8 10 10 10 10 10 6 Class Distribution -------------------- 41% | Scavenger-Mutant 39% | Mutant 9% | Scavenger-Skirmisher 6% | Assassin Dominant Class ---------------- Mutant | -10/Materials Mutant | -10/Mines Mutant | -10/Exiles Mutant | -9/Mines Scavenger-Skirmisher | -8/Materials Scavenger-Mutant | -8/Storage Scavenger-Skirmisher | -7/Factory Mutant | -7/Lower Caves Mutant | -7/Lower Caves Mutant | -6/Factory Assassin | -5/Factory Scavenger-Mutant | -5/Extension Scavenger-Mutant | -5/Cetus Scavenger-Mutant | -5/Archives Scavenger-Mutant | -5/Hub_04(d) Resources | -11 -10 -10 -10 -9 -8 -8 -7 -7 -7 -6 -5 -5 -5 -5 -5 ----------- Run | Jun Mat Min Exi Min Mat Sto Fac Low Low Fac Fac Ext Cet Arc Hub Matter Collected 3449 | 290 46 . . 264 51 664 70 202 19 67 88 588 235 371 494 Remotely . | . . . . . . . . . . . . . . . . Salvage Created 4684 | 143 125 . . 344 92 1121 194 219 222 67 228 734 242 356 597 Parts 180 | 15 10 . . 17 3 52 6 2 2 4 7 15 9 13 25 Haulers Intercepted . | . . . . . . . . . . . . . . . . Recyclers Shooed 8 | . 1 . . . . 7 . . . . . . . . . Parts Field Recycled 5 | . . . . . . . . . . . . . . . 5 Retrieved Matter 25 | . . . . . . . . . . . . . . . 25 Parts Self-Destructed 5 | . . . . . . . . . 5 . . . . . . Prevented 3 | . . . . . . . . 2 1 . . . . . . Kills | -11 -10 -10 -10 -9 -8 -8 -7 -7 -7 -6 -5 -5 -5 -5 -5 ------- Run | Jun Mat Min Exi Min Mat Sto Fac Low Low Fac Fac Ext Cet Arc Hub Combat Hostiles Destroyed 79 | . 2 . . 9 2 15 4 6 7 1 3 13 3 4 10 Melee 17 | . . . . . . 1 . 3 4 1 . 7 . . 1 Guns 46 | . 2 . . 9 2 14 3 . . . 3 1 3 3 6 Cannons 2 | . . . . . . . . . . . . . . 1 1 Classes Destroyed 14 | 2 2 . . . . 3 3 1 . . . 1 . 1 1 Worker 4 | . . . . . . 1 . . . . 2 . . . 1 Builder 2 | . . . . . . . 1 . . . . . . . 1 Tunneler 3 | 3 . . . . . . . . . . . . . . . Recycler 6 | 1 . . . . . 4 . . . . 1 . . . . Mechanic 1 | . . . . . . . 1 . . . . . . . . Operator 1 | . . . . . . . . . . . . . . 1 . Watcher 5 | . 2 . . . . . . . . . . 2 1 . . Swarmer 9 | . . . . . . . . 2 4 . . 3 . . . Grunt 33 | . 2 . . 9 2 7 . 3 3 . . 5 . . 2 Brawler 1 | . . . . . . . . . . . . 1 . . . Sentry 21 | . . . . . . 7 2 1 . 1 . 4 . 4 2 Specialist 1 | . . . . . . . . . . . . . . . 1 Hunter 1 | . . . . . . 1 . . . . . . . . . Programmer 10 | . . . . . . . 2 . . . 3 . . . 5 Cetus Guard 3 | . . . . . . . . . . . . . 3 . . Best Kill Streak 6 | 4 1 . . 4 2 5 3 3 6 1 3 5 4 2 3 Combat Bots Only 6 | . 1 . . 4 2 4 2 3 6 1 1 5 3 2 3 Max Kills in Single Turn 1 | 1 1 . . 1 1 1 1 1 1 1 1 1 1 1 1 Gunslinging . | . . . . . . . . . . . . . . . . Exploded . | . . . . . . . . . . . . . . . . Melee 1 | . . . . . . 1 . 1 1 1 . 1 . . 1 Uniques/NPCs Destroyed . | . . . . . . . . . . . . . . . . Combat | -11 -10 -10 -10 -9 -8 -8 -7 -7 -7 -6 -5 -5 -5 -5 -5 -------- Run | Jun Mat Min Exi Min Mat Sto Fac Low Low Fac Fac Ext Cet Arc Hub Damage Taken 13414 | . 198 . . 463 416 1672 769 693 877 . 1169 1902 1311 517 3427 Core 2014 | . 61 . . 55 92 276 61 243 225 . 82 338 166 57 358 Absorbed by Shields . | . . . . . . . . . . . . . . . . Redirected to Shielding 50 | . . . . . 10 40 . . . . . . . . . Core Remaining (%) 62 | 100 . . . 53 . 33 . . 24 100 . . . . . Volleys Fired 298 | 5 26 . . 27 11 102 13 . . . 22 4 15 17 56 Largest 2 | 2 2 . . 2 2 2 2 . . . 2 2 1 2 2 Hottest 92 | 40 40 . . 40 46 50 84 . . . 55 55 35 92 92 Shots Fired 450 | 10 52 . . 54 22 112 24 . . . 44 6 14 30 82 Gun 421 | 10 52 . . 54 22 112 24 . . . 44 6 14 16 67 Cannon 25 | . . . . . . . . . . . . . . 10 15 Launcher 4 | . . . . . . . . . . . . . . 4 . Special . | . . . . . . . . . . . . . . . . Kinetic 425 | 10 52 . . 54 22 104 11 . . . 44 6 14 26 82 Thermal 13 | . . . . . . . 13 . . . . . . . . Explosive . | . . . . . . . . . . . . . . . . Electromagnetic 12 | . . . . . . 8 . . . . . . . 4 . Robot Hit Streak 46 | 5 8 . . 17 9 46 19 . . . 20 1 14 7 22 Robot Miss Streak 7 | 1 6 . . 3 2 3 4 . . . 7 2 . 2 3 Penetration Max 1 | . . . . . . . . . . . . . 1 1 1 Secondary Targets 3 | . . . . 3 . . . . . . . . . . . Max Gunslinging Chain 1 | . . . . 1 . . . . . . . . . . . Shots Hit Robots 467 | 7 31 . . 35 16 100 31 15 14 2 33 84 22 17 60 Core Hits 159 | 4 10 . . 16 5 37 18 1 2 1 12 11 13 11 18 Critical Kills 11 | . . . . . . . . . . 1 . 3 1 2 4 Critical Parts Destroyed 28 | . . . . . 1 1 . 3 1 1 2 9 2 1 7 Critical Strikes 47 | . . . . . 1 2 2 3 1 2 2 13 4 4 13 Burn 2 | . . . . . . . 2 . . . . . . . . Destroy 18 | . . . . . 1 2 . . . . . . 2 3 10 Blast 3 | . . . . . . . . . . . . . . 1 2 Smash 23 | . . . . . . . . 3 1 2 2 13 1 . 1 Sever 1 | . . . . . . . . . . . . . 1 . . Melee Attacks 179 | . . . . . . 9 12 19 20 2 9 93 9 . 6 Impact 126 | . . . . . . . 12 19 20 2 9 54 4 . 6 Slashing 14 | . . . . . . 9 . . . . . . 5 . . Piercing . | . . . . . . . . . . . . . . . . Sneak Attacks 50 | . . . . . . 6 3 . . 1 1 39 . . . Combat Hostiles 3 | . . . . . . . . . . . . 3 . . . Follow-up Attacks 18 | . . . . . . . 1 2 1 . 1 9 4 . . Damage Inflicted 12306 | 91 412 18 . 428 253 1854 986 695 731 177 1114 1920 721 656 2250 Guns 6090 | 91 393 . . 424 253 1303 429 . . . 711 88 436 340 1622 Cannons 596 | . . . . . . . . . . . . . . 202 394 Explosions 239 | . . . . . . . . . . . 144 . . 95 . Melee 5211 | . . . . . . 514 550 695 731 177 259 1832 285 . 168 Ramming 170 | . 19 18 . 4 . 37 7 . . . . . . 19 66 Kinetic 6442 | 91 393 . . 424 253 1227 261 . . . 711 88 436 542 2016 Thermal 312 | . . . . . . . 168 . . . 144 . . . . Explosive . | . . . . . . . . . . . . . . . . Electromagnetic 171 | . . . . . . 76 . . . . . . . 95 . Impact 4553 | . . . . . . . 550 695 731 177 259 1832 141 . 168 Slashing 658 | . . . . . . 514 . . . . . . 144 . . Piercing . | . . . . . . . . . . . . . . . . Highest Corruption 25 | . . . . . . . 2 2 2 . . 5 5 5 25 Average Corruption 6 | . . . . . . . 1 2 2 . . 5 5 5 9 Corruption Purged 5 | . . . . . . . . . . . . . . . 5 Corruption Blocked 11 | . . . . . . . . . . . 11 . . . . Effects 123 | . . . . . . . . 10 5 . . 22 7 10 69 Message Errors 22 | . . . . . . . . 1 1 . . 4 1 1 14 Matter Fused 38 | . . . . . . . . 5 1 . . 9 3 1 19 Heat Flow Errors 18 | . . . . . . . . 3 1 . . 2 1 3 8 Energy Discharges 7 | . . . . . . . . . . . . . . 2 5 Parts Rejected 4 | . . . . . . . . . . . . 1 . . 3 Parts Fused 1 | . . . . . . . . . . . . 1 . . . Data Loss (minor) 11 | . . . . . . . . . . . . 2 1 1 7 Data Loss (major) 7 | . . . . . . . . 1 1 . . 2 . . 3 Misfires 4 | . . . . . . . . . . . . . . 1 3 Alerts 4 | . . . . . . . . . 1 . . 1 . 1 1 Misdirections 2 | . . . . . . . . . . . . . . . 2 Weapon Failures 5 | . . . . . . . . . . . . . 1 . 4 Overload Shots . | . . . . . . . . . . . . . . . . Overflow Damage 1677 | . . . . . . 188 234 240 194 126 146 456 31 . 62 Projectiles . | . . . . . . . . . . . . . . . . Explosions . | . . . . . . . . . . . . . . . . Melee 1677 | . . . . . . 188 234 240 194 126 146 456 31 . 62 Knockbacks 19 | . 1 . . . . . 4 1 3 . 2 1 . . 7 Impact 13 | . 1 . . . . . 4 1 3 . 2 1 . . 1 Kinetic 6 | . . . . . . . . . . . . . . . 6 Secondary . | . . . . . . . . . . . . . . . . Self-Inflicted Damage 148 | . . . . . . . . . . . 148 . . . . Shots 2 | . . . . . . . . . . . 2 . . . . Rammed 7 | . . . . . . . . . . . . . . 3 4 Targets Rammed 23 | . 4 2 . 3 . 4 1 . . . . . . 3 6 Kicked 14 | . 4 2 . 3 . 4 1 . . . . . . . . Crushed 2 | . . . . . . . . . . . . . . . 2 Highest Temperature 274 | . 2 . . 27 33 24 48 201 198 . . 241 116 235 274 Average Temperature 86 | . 2 . . 16 12 8 24 95 90 . . 92 40 75 111 Received Heat Transfer 3072 | . 114 . . 222 216 558 132 147 336 . . 540 216 90 501 Effects 4 | . . . . . . . . . . . . . . . 4 Interference 4 | . . . . . . . . . . . . . . . 4 Siege Activations . | . . . . . . . . . . . . . . . . Robots Corrupted . | . . . . . . . . . . . . . . . . Combat Hostiles . | . . . . . . . . . . . . . . . . Parts Fried 15 | . . . . . . 2 1 3 5 . . 4 . . . Impact Corruptions 55 | . . . . . . . 12 9 8 1 5 17 1 . 2 Robots Melted . | . . . . . . . . . . . . . . . . Combat Hostiles . | . . . . . . . . . . . . . . . . Parts Melted 7 | . . . . . . . 5 . . . . 2 . . . Heat Transferred 705 | . . . . . . . 555 . . . 150 . . . . Parts Sabotaged . | . . . . . . . . . . . . . . . . Parts Stolen . | . . . . . . . . . . . . . . . . Parts Stripped . | . . . . . . . . . . . . . . . . Power Chain Reactions . | . . . . . . . . . . . . . . . . Missiles Intercepted . | . . . . . . . . . . . . . . . . Alert | -11 -10 -10 -10 -9 -8 -8 -7 -7 -7 -6 -5 -5 -5 -5 -5 ------- Run | Jun Mat Min Exi Min Mat Sto Fac Low Low Fac Fac Ext Cet Arc Hub Peak Influence 328 | 20 130 26 . 160 53 261 115 . . 174 116 328 55 252 140 Initial 159 | . 13 26 . . 3 24 74 . . 159 21 56 10 22 18 Average 73 | 6 40 26 . 20 12 106 51 . . 113 33 149 36 125 64 Maximum Alert Level 1 | . . . . . . 1 . . . . . 1 . 1 . Low Security (%) 95 | 100 100 100 . 100 100 91 100 . . 100 100 86 100 73 100 Level 1 4 | . . . . . . 8 . . . . . 13 . 26 . Level 2 . | . . . . . . . . . . . . . . . . Level 3 . | . . . . . . . . . . . . . . . . Level 4 . | . . . . . . . . . . . . . . . . Level 5 . | . . . . . . . . . . . . . . . . High Security . | . . . . . . . . . . . . . . . . Max Security . | . . . . . . . . . . . . . . . . Squads Dispatched 14 | . . . . . 1 . 3 . . 1 1 2 . . 6 Investigation 2 | . . . . . 1 . 1 . . . . . . . . Extermination 4 | . . . . . . . 2 . . . . . . . 2 Reinforcement 8 | . . . . . . . . . . 1 1 2 . . 4 Assault . | . . . . . . . . . . . . . . . . Garrison . | . . . . . . . . . . . . . . . . Intercept . | . . . . . . . . . . . . . . . . Searches Triggered . | . . . . . . . . . . . . . . . . Construction Impeded 1 | . . . . . . . . . . . 1 . . . . Haulers Reinforced . | . . . . . . . . . . . . . . . . Active Scanning Responses . | . . . . . . . . . . . . . . . . Cargo Convoy Interrupts . | . . . . . . . . . . . . . . . . Stealth | -11 -10 -10 -10 -9 -8 -8 -7 -7 -7 -6 -5 -5 -5 -5 -5 --------- Run | Jun Mat Min Exi Min Mat Sto Fac Low Low Fac Fac Ext Cet Arc Hub Distress Signals 15 | . 1 . . . . 4 1 . . . . 4 1 1 3 Communications Jammed . | . . . . . . . . . . . . . . . . Distress Signals . | . . . . . . . . . . . . . . . . Times Spotted 166 | . 10 . . 11 7 29 8 6 9 2 5 33 5 12 29 Peak Tracking Total 7 | . 2 . . 5 5 5 3 3 6 1 2 6 5 2 7 Tactical Retreats 15 | . 1 . . . . 2 1 . 2 . . 2 . 2 5 Traps | -11 -10 -10 -10 -9 -8 -8 -7 -7 -7 -6 -5 -5 -5 -5 -5 ------- Run | Jun Mat Min Exi Min Mat Sto Fac Low Low Fac Fac Ext Cet Arc Hub Traps Triggered 11 | . . . . . 1 3 4 . . . . . . . 3 Indirectly . | . . . . . . . . . . . . . . . . Trap Hack Attempts . | . . . . . . . . . . . . . . . . Triggered . | . . . . . . . . . . . . . . . . Disarmed . | . . . . . . . . . . . . . . . . Reprogrammed . | . . . . . . . . . . . . . . . . Reused . | . . . . . . . . . . . . . . . . Traps Extracted . | . . . . . . . . . . . . . . . . Installed . | . . . . . . . . . . . . . . . . Triggered . | . . . . . . . . . . . . . . . . Machines | -11 -10 -10 -10 -9 -8 -8 -7 -7 -7 -6 -5 -5 -5 -5 -5 ---------- Run | Jun Mat Min Exi Min Mat Sto Fac Low Low Fac Fac Ext Cet Arc Hub Machines Disabled 18 | . 1 . . . . 1 . . . . 2 1 . 6 7 Max in Single Turn 3 | . 1 . . . . 1 . . . . 2 . . 1 3 Network Hub 2 | . . . . . . . . . . . . . . . 2 Energy Cycler 2 | . . . . . . . . . . . . 2 . . . Machines Repaired . | . . . . . . . . . . . . . . . . Machines Sabotaged . | . . . . . . . . . . . . . . . . Overloaded Fab Kills . | . . . . . . . . . . . . . . . . Hacking | -11 -10 -10 -10 -9 -8 -8 -7 -7 -7 -6 -5 -5 -5 -5 -5 --------- Run | Jun Mat Min Exi Min Mat Sto Fac Low Low Fac Fac Ext Cet Arc Hub Machines Accessed 21 | . . . 1 . . 7 3 1 . . 1 2 3 1 2 Terminals 15 | . . . . . . 7 1 . . . . 2 3 . 2 Fabricators 2 | . . . . . . . 2 . . . . . . . . Repair Stations 1 | . . . . . . . . . . . 1 . . . . Recycling Units . | . . . . . . . . . . . . . . . . Scanalyzers . | . . . . . . . . . . . . . . . . Garrison Access . | . . . . . . . . . . . . . . . . Total Hacks 44 | . . . 1 . . 14 4 1 . . 1 3 13 5 2 Successful 25 | . . . 1 . . 7 2 1 . . 1 2 4 5 2 Failed 19 | . . . . . . 7 2 . . . . 1 9 . . Catastrophic 2 | . . . . . . . . . . . . . 2 . . Database Lockouts . | . . . . . . . . . . . . . . . . Manual 2 | . . . 1 . . . . . . . . . 1 . . Terminals 34 | . . . . . . 14 2 . . . . 3 13 . 2 Fabricators 2 | . . . . . . . 2 . . . . . . . . Repair Stations 1 | . . . . . . . . . . . 1 . . . . Recycling Units . | . . . . . . . . . . . . . . . . Scanalyzers . | . . . . . . . . . . . . . . . . Garrison Access . | . . . . . . . . . . . . . . . . Terminal Hacks 22 | . . . 1 . . 7 . 1 . . . 2 4 5 2 Record 10 | . . . . . . 1 . . . . . . 4 5 . Robot Analysis 1 | . . . . . . 1 . . . . . . . . . Open Door 6 | . . . . . . 4 . 1 . . . 1 . . . Maintenance Status 1 | . . . . . . 1 . . . . . . . . . Zone Layout 3 | . . . . . . . . . . . . 1 . . 2 EX-Prototype ID Bank 1 | . . . 1 . . . . . . . . . . . . Fabricator Hacks 2 | . . . . . . . 2 . . . . . . . . Network Status 2 | . . . . . . . 2 . . . . . . . . Repair Station Hacks 1 | . . . . . . . . . . . 1 . . . . Scan Component 1 | . . . . . . . . . . . 1 . . . . Recycling Unit Hacks . | . . . . . . . . . . . . . . . . Scanalyzer . | . . . . . . . . . . . . . . . . Garrison Access Hacks . | . . . . . . . . . . . . . . . . Unauthorized Hacks . | . . . . . . . . . . . . . . . . Terminals . | . . . . . . . . . . . . . . . . Fabricators . | . . . . . . . . . . . . . . . . Repair Stations . | . . . . . . . . . . . . . . . . Recycling Units . | . . . . . . . . . . . . . . . . Scanalyzers . | . . . . . . . . . . . . . . . . Garrison Access . | . . . . . . . . . . . . . . . . Data Cores Recovered . | . . . . . . . . . . . . . . . . Used . | . . . . . . . . . . . . . . . . Hacking Detections 11 | . . . . . . 5 1 . . . 1 . 4 . . Full Trace Events 2 | . . . . . . 1 1 . . . . . . . . Feedback Events . | . . . . . . . . . . . . . . . . Feedback Blocked . | . . . . . . . . . . . . . . . . Robot Schematics Acquired . | . . . . . . . . . . . . . . . . Robots Built . | . . . . . . . . . . . . . . . . Authchips . | . . . . . . . . . . . . . . . . Time . | . . . . . . . . . . . . . . . . Total Robot Build Rating . | . . . . . . . . . . . . . . . . Part Schematics Acquired . | . . . . . . . . . . . . . . . . Parts Built . | . . . . . . . . . . . . . . . . Authchips . | . . . . . . . . . . . . . . . . Time . | . . . . . . . . . . . . . . . . Total Part Build Rating . | . . . . . . . . . . . . . . . . Parts Repaired . | . . . . . . . . . . . . . . . . Time . | . . . . . . . . . . . . . . . . Parts Recycled . | . . . . . . . . . . . . . . . . Recycled Matter . | . . . . . . . . . . . . . . . . Retrieved Matter . | . . . . . . . . . . . . . . . . Retrieved Components . | . . . . . . . . . . . . . . . . Parts Scanalyzed . | . . . . . . . . . . . . . . . . Part Schematics Acquired . | . . . . . . . . . . . . . . . . Parts Damaged . | . . . . . . . . . . . . . . . . Bothacking | -11 -10 -10 -10 -9 -8 -8 -7 -7 -7 -6 -5 -5 -5 -5 -5 ------------ Run | Jun Mat Min Exi Min Mat Sto Fac Low Low Fac Fac Ext Cet Arc Hub Used RIF Installer . | . . . . . . . . . . . . . . . . Robots Hacked . | . . . . . . . . . . . . . . . . Non-combat . | . . . . . . . . . . . . . . . . Combat . | . . . . . . . . . . . . . . . . Robot Hacks Applied . | . . . . . . . . . . . . . . . . Relay Couplers Released . | . . . . . . . . . . . . . . . . Fabnet Peak Effective % . | . . . . . . . . . . . . . . . . Robots Rewired 20 | . . . . . . . . . . . . 20 . . . Allies Hacked . | . . . . . . . . . . . . . . . . Hacks Repelled . | . . . . . . . . . . . . . . . . Allies | -11 -10 -10 -10 -9 -8 -8 -7 -7 -7 -6 -5 -5 -5 -5 -5 -------- Run | Jun Mat Min Exi Min Mat Sto Fac Low Low Fac Fac Ext Cet Arc Hub Total Allies 21 | . . . . . . . . . 1 . . 20 . . . Largest Group 7 | . . . . . . . . . 1 . . 7 . . . Highest-Rated Group 210 | . . . . . . . . . 106 . . 210 . . . Highest-Rated Ally 106 | . . . . . . . . . 106 . . 39 . . . Total Orders 1 | . . . . . . 1 . . . . . . . . . EXPLORE 1 | . . . . . . 1 . . . . . . . . . Ally Attacks 107 | . . . . . . . . . 1 . . 106 . . . Total Damage 2296 | . . . . . . . . . 36 . . 2260 . . . Kills 16 | . . . . . . . . . 1 . . 15 . . . Allies Corrupted 1 | . . . . . . 1 . . . . . . . . . Allies Melted . | . . . . . . . . . . . . . . . . Intel | -11 -10 -10 -10 -9 -8 -8 -7 -7 -7 -6 -5 -5 -5 -5 -5 ------- Run | Jun Mat Min Exi Min Mat Sto Fac Low Low Fac Fac Ext Cet Arc Hub Robot Analysis Total 1 | . . . . . . 1 . . . . . . . . . Derelict Logs Recovered 3 | . . . . 2 . . . 1 . . . . . . . Drone Launches 14 | . . . . . . 14 . . . . . . . . . Drone Recoveries . | . . . . . . . . . . . . . . . . Exploration | -11 -10 -10 -10 -9 -8 -8 -7 -7 -7 -6 -5 -5 -5 -5 -5 ------------- Run | Jun Mat Min Exi Min Mat Sto Fac Low Low Fac Fac Ext Cet Arc Hub Turns Passed 11276 | 92 770 146 391 1086 144 1346 1188 795 242 619 719 1214 270 505 1749 Spaces Moved 6849 | 65 526 120 324 450 69 773 848 533 210 522 482 763 127 231 806 Core 36 | 22 . . . . . . . . . . . . 7 . 7 Treads 1050 | . . . . . . . . . . . . . 93 231 726 Legs 5641 | 43 526 120 324 450 69 654 848 533 210 522 479 763 27 . 73 Wheels . | . . . . . . . . . . . . . . . . Hover 122 | . . . . . . 119 . . . . 3 . . . . Flight . | . . . . . . . . . . . . . . . . Fastest Speed 38 | 50 120 120 120 120 120 38 120 100 90 90 100 100 120 160 160 Average Speed 125 | 96 120 120 120 120 136 107 122 134 90 96 101 120 167 160 176 Slowest Speed 850 | 120 120 120 120 190 190 230 125 190 100 100 330 190 450 160 850 Overloaded Moves . | . . . . . . . . . . . . . . . . Propulsion Burnouts . | . . . . . . . . . . . . . . . . Robots Hopped . | . . . . . . . . . . . . . . . . Cave-ins Triggered 1 | . . . . . . . . . . . . 1 . . . Exploration Rate (%) 49 | 3 91 29 76 81 9 90 19 64 24 12 13 79 61 84 59 Regions Visited 15 Branch Regions 10 Pre-discovered Areas 3 | . . . . 1 . 1 . 1 . . . . . . . Known Exits Taken 13 | . 1 1 1 1 1 1 1 1 1 1 . 1 1 1 . Unknown Exits Taken 2 | 1 . . . . . . . . . . 1 . . . . Scrap Searched 5 | . . . . 2 . . . 2 1 . . . . . . Spaces Dug . | . . . . . . . . . . . . . . . . Terrain Destroyed 45 | . . . . . . . . . . . 15 . 2 7 21 Melee . | . . . . . . . . . . . . . . . . Projectile 30 | . . . . . . . . . . . . . 2 7 21 AOE 15 | . . . . . . . . . . . 15 . . . . Terrain Rammed . | . . . . . . . . . . . . . . . . Walls Destroyed . | . . . . . . . . . . . . . . . . Machines Disabled . | . . . . . . . . . . . . . . . . Actions | -11 -10 -10 -10 -9 -8 -8 -7 -7 -7 -6 -5 -5 -5 -5 -5 --------- Run | Jun Mat Min Exi Min Mat Sto Fac Low Low Fac Fac Ext Cet Arc Hub Total 8865 | 84 612 121 327 942 99 1163 953 580 230 633 651 946 158 333 1033 Wait 1239 | . 47 . . 448 13 204 54 21 . 94 123 38 . 67 130 Move 6834 | 64 525 119 323 449 68 772 847 532 209 521 481 762 126 230 806 Hop . | . . . . . . . . . . . . . . . . Pick Up 63 | 9 7 . 2 2 2 16 6 3 1 4 1 1 2 1 6 Fast Attach 83 | 1 . . . 1 1 14 8 2 . 7 9 24 4 5 7 Attach 41 | 5 1 . . 1 2 13 2 4 . . 1 . 3 . 9 Detach 2 | . . . . . . 1 . . . . . . 1 . . Swap 47 | . 1 . . 5 1 6 4 . 1 . 2 19 1 6 1 Drop 68 | . 1 . 2 6 1 15 7 2 1 5 4 15 1 4 4 Fire 298 | 5 26 . . 27 11 102 13 . . . 22 4 15 17 56 Melee 158 | . . . . . . 9 11 16 18 2 8 83 5 . 6 Ram . | . . . . . . . . . . . . . . . . Kick 14 | . 4 2 . 3 . 4 1 . . . . . . . . Crush 9 | . . . . . . . . . . . . . . 3 6 Escape Stasis 2 | . . . . . . . . . . . . . . . 2 Rewire . | . . . . . . . . . . . . . . . . Trap . | . . . . . . . . . . . . . . . . Miscellaneous 7 | . . . . . . 7 . . . . . . . . . Route ------- -11/Junkyard -10/Materials (discovered 4 exits: *Mat x3 / *Min) -10/Mines -10/Exiles -9/Mines (discovered 2 exits: *Mat x2) -8/Materials -8/Storage -7/Factory -7/Lower Caves -7/Lower Caves -6/Factory -5/Factory -5/Extension (discovered 3 exits: *Fac x2 / *Cet) -5/Cetus -5/Archives (discovered 3 exits: *Fac / *Hub x2) -5/Hub_04(d) (discovered 1 exit: *Fac) History --------- Turn | Location | Event 5 | -11/Junkyard | Discovered new exit (range 15) 93 | -11/Junkyard | Entered Materials 255 | -10/Materials | Discovered new exit (range 4) 303 | -10/Materials | Build established: Mutant 311 | -10/Materials | Identified exit to Materials 610 | -10/Materials | Discovered exit to Materials (range 12) 683 | -10/Materials | Discovered exit to Materials (range 16) 848 | -10/Materials | Discovered new exit (range 13) 862 | -10/Materials | Identified exit to Mines 863 | -10/Materials | Entered Mines 911 | -10/Mines | Met a Derelict bent on vengeance 1004 | -10/Mines | Deemed a non-threat by the Exiles lab entrance 1004 | -10/Mines | Discovered new exit (range 5) 1007 | -10/Mines | Identified exit to Exiles 1009 | -10/Mines | Entered Exiles 1043 | -10/Exiles | Met 8R-AWN 1063 | -10/Exiles | Met EX-HEX 1099 | -10/Exiles | Met EX-BIN 1127 | -10/Exiles | Aligned with FarCom system 1128 | -10/Exiles | Given EX-Vault access code 1158 | -10/Exiles | Opened EX-Vault 1165 | -10/Exiles | Found Potential Leg 1168 | -10/Exiles | Found Potential Leg 1191 | -10/Exiles | Warned to stay clear of 0b10 Research branches 1226 | -10/Exiles | Met EX-DEC 1299 | -10/Exiles | Visited The Gauntlet 1387 | -10/Exiles | Discovered new exit (range 12) 1399 | -10/Exiles | Identified exit to Mines 1400 | -10/Exiles | Left Exiles lab with Potential Leg 1400 | -10/Exiles | Entered Mines 1454 | -9/Mines | Received a Rocket Launcher from a helpful Derelict 1475 | -9/Mines | A weapon hastily lodged in a ceiling crevice suddenly fell to the ground 1502 | -9/Mines | Identified exit to Materials 1543 | -9/Mines | Excavation squad dispatched 1543 | -9/Mines | A large section of the Mines collapsed 1793 | -9/Mines | Excavation squad dispatched 2043 | -9/Mines | Excavation squad dispatched 2201 | -9/Mines | Learned location of Zion (-6) 2372 | -9/Mines | Discovered exit to Materials (range 13) 2410 | -9/Mines | Build established: Scavenger-Mutant 2486 | -9/Mines | Entered Materials 2486 | -8/Materials | Evolved 4 slots: Propulsion x2, Utility x2 2549 | -8/Materials | Discovered new exit (range 16) 2629 | -8/Materials | Identified exit to Storage 2630 | -8/Materials | Entered Storage 2822 | -8/Storage | Learned location of Armory (-4) 3083 | -8/Storage | Build established: Mutant 3102 | -8/Storage | Lost 5 parts (1p2u2w) 3116 | -8/Storage | Core integrity fell below 50% 3350 | -8/Storage | Discovered new exit (range 16) 3422 | -8/Storage | Build established: Scavenger-Mutant 3972 | -8/Storage | Identified exit to Factory 3976 | -8/Storage | Entered Factory 3976 | -7/Factory | Evolved 2 slots: Power x1, Utility x1 4199 | -7/Factory | Build established: Scavenger-Skirmisher 4806 | -7/Factory | Lost 3 parts (1p2n) 5108 | -7/Factory | Discovered new exit (range 14) 5162 | -7/Factory | Identified exit to Lower Caves 5164 | -7/Factory | Entered Lower Caves 5362 | -7/Lower Caves | Build established: Mutant 5485 | -7/Lower Caves | Learned location of Extension (-5) 5727 | -7/Lower Caves | Discovered new exit (range 10) 5729 | -7/Lower Caves | Attracted the attention of an 0b10 checkpoint 5786 | -7/Lower Caves | Lost 4 parts (1p2n1u) 5789 | -7/Lower Caves | Identified exit to Lower Caves 5959 | -7/Lower Caves | Entered another Lower Caves area 5977 | -7/Lower Caves | Core integrity fell below 50% 6016 | -7/Lower Caves | Lost 3 parts (2p1n) 6043 | -7/Lower Caves | Attracted the attention of an 0b10 checkpoint 6102 | -7/Lower Caves | Spotted B-75 Beast 6135 | -7/Lower Caves | 12-ASH showed up to help 6191 | -7/Lower Caves | 12-ASH revealed a hidden path 6199 | -7/Lower Caves | Identified exit to Factory 6201 | -7/Lower Caves | Entered Factory 6201 | -6/Factory | Evolved 2 slots: Propulsion x1, Utility x1 6803 | -6/Factory | Discovered new exit (range 8) 6812 | -6/Factory | Identified exit to Factory 6820 | -6/Factory | Entered another Factory area 6820 | -5/Factory | Evolved 2 slots: Propulsion x1, Utility x1 7120 | -5/Factory | Build established: Assassin 7527 | -5/Factory | Discovered new exit (range 13) 7539 | -5/Factory | Entered Extension 7622 | -5/Extension | Energy Cycler disabled 7622 | -5/Extension | Rescued a captive Derelict 7622 | -5/Extension | Rescued a captive Derelict 7624 | -5/Extension | Rescued a captive Derelict 7624 | -5/Extension | Rescued a captive Derelict 7646 | -5/Extension | Rescued a captive Derelict 7798 | -5/Extension | Crushed by falling debris 7829 | -5/Extension | Lost 13 parts (2p6n5u) 8149 | -5/Extension | Build established: Scavenger-Mutant 8236 | -5/Extension | Spotted B-75 Beast 8250 | -5/Extension | Spotted B-75 Beast 8259 | -5/Extension | Discovered new exit (range 16) 8265 | -5/Extension | Allies destroyed B-75 Beast 8267 | -5/Extension | Extracted ID and sensor layout for unrecognized location from A7's data core 8267 | -5/Extension | Allies destroyed B-75 Beast 8717 | -5/Extension | Discovered new exit (range 10) 8718 | -5/Extension | Discovered new exit (range 6) 8744 | -5/Extension | Identified exit to Factory 8749 | -5/Extension | Identified exit to Cetus 8753 | -5/Extension | Entered Cetus 8769 | -5/Cetus | Spotted Cetus Guard 8769 | -5/Cetus | Spotted Cetus Guard 8773 | -5/Cetus | Spotted Cetus Guard 8774 | -5/Cetus | Spotted Cetus Guard 8797 | -5/Cetus | Core integrity fell below 50% 8807 | -5/Cetus | Destroyed Cetus Guard 8815 | -5/Cetus | Destroyed Cetus Guard 8831 | -5/Cetus | Destroyed Cetus Guard 8854 | -5/Cetus | Lost 10 parts (1p6n2u1w) 8999 | -5/Cetus | Discovered new exit (range 16) 9021 | -5/Cetus | Identified exit to Archives 9023 | -5/Cetus | Entered Archives 9359 | -5/Archives | Unable to access archive contents 9391 | -5/Archives | Discovered new exit (range 15) 9424 | -5/Archives | Identified exit to Hub_04(d) 9458 | -5/Archives | Discovered exit to Hub_04(d) (range 13) 9482 | -5/Archives | Discovered exit to Factory (range 14) 9528 | -5/Archives | Entered Hub_04(d) 9698 | -5/Hub_04(d) | Discovered exit to Factory (range 8) 10279 | -5/Hub_04(d) | Network Hub disabled 10279 | -5/Hub_04(d) | Network Hub disabled 10299 | -5/Hub_04(d) | Spotted B-75 Beast 10885 | -5/Hub_04(d) | System corruption reached 10% 10946 | -5/Hub_04(d) | Lost 6 parts (2p2n1u1w) 11014 | -5/Hub_04(d) | Core integrity fell below 20% 11050 | -5/Hub_04(d) | Lost 4 parts (2n2w) 11277 | -5/Hub_04(d) | Destroyed by X-77 Beamer with Gatling Laser Last Messages --------------- 11150_ System corrupted: Matter fused (-10). 11158_ K-01 Serf exits level. 11181_ The unstable cave ceiling collapses. 11182_ System corrupted: Matter fused (-5). 11184_ K-01 Serf collects debris. 11185_ Acquired Enh. Gauss Cannon. 11188_ K-01 Serf collects debris. 11211_ U-05 Engineer exits level. 11218_ T-07 Excavator exits level. 11220_ K-01 Serf exits level. 11232_ System corrupted: Matter fused (-9). 11247_ System corrupted: Component data lost. 11260_ ALERT: Suspicious intruders detected, dispatching Specialist reinforcements to area. 11262_ System corrupted: Component data lost. 11269_ Quantum Reactor destroyed. 11269_ Flexi-carbon Leg destroyed. 11270_ Stasis Canceller destroyed. 11270_ Melee Analysis Suite destroyed. 11273_ Mic. Fission Core destroyed. Map ----- +----------------------------------------------------+ | " " #????????????? #???????????????????????##?# | | " ############# #????????????????????????# | | % " # # #????????????????????????# "" | | # + #????????????????????????# | | !%= # #????????????????????????# "" | | """"!+% # / ??????????????????????# | | """" [ #? ## ?????? "???????????# "" | | """" # #? #?? ???? ?????????# | | # #??#???? """??# ???????# "" | | ##"#""#######? ?????? ???# ?????# | | #+###"#? #T #?????? ????????"??? ???##+# | | ##"####" "###???? ???????????????T"" ### | | "" ???????????????""" + | | "T % H ???????????# ### | | ############+#??? ?????????????##/########### | | ##??? ??? #?? ??????????????# # | | #???? ? #?# #???########??# # | | #???? #?# #???# #??# # | | ### #?# #???# " #??#% """ "" " # | | + [ #?# #???# "G" #??# """ " "" # | | ### ! #?# #???# " " #### "" """ # | | #??? #?# #???# + + " """" + | | #???+#?########### #???# ! # ###"##"###### | | #??? #??????# # ##########/# #### ##### | | #?##+######## k x p % % | | #?# # @ x % | | | #?# """" # ;#########+######+## | | ### """" ## ####???????# %### ###### | | #!# """" ## #????????# " # # #???## % | | +! """ ## #????????##" # # ###### | | ^^ # ## ############ # # " | | # ! ## # ## # # ! | | + ## # #############++ # | | ########+### # #?????# = ! ! # % | | ### # """" #?????# #% | | < + """" #?????# # | | #" ### !%# """" #????## # | | #"T#?######+###+# """" #????# # | | ####??## =# #????# # | | +###???# """ ###########???# # | | ###### #?????????????# ** # | | # # #?????????????## * # | | "" ###### !|| #??????????????# # | | "" #????# !|! #??????????????# ### | | "" ###### !| #??????????????# | | "" # # #??????????????### | | ###### ! #????????????????########## ### | | "" #????##########?????????????????????????###?# | | "" #??????????????????????????????????????????#" | | "" #?????????????????????????????????????????# # | +----------------------------------------------------+ Best States ------------- Heat Dissipation 61 Energy Generation 38 Energy Capacity 515 Matter Stores 300 Matter Capacity 300 Sight Range 16 Robot Scan Range 16 Terrain Scan Density 10 Additional Mass Support 9 Corruption Block 15 Armor Coverage 225 Utility Shielding 33 Phase Shifting 5 Evasion (%) 60 Melee Accuracy 5 Armor Integrity Analysis 30 Recoil Reduction 6 Offensive Hacking 11 Item Schematics ----------------- None Robot Schematics ------------------ None Fabricated ------------ Nothing Alien Tech Used ----------------- None Achievements -------------- Knowing Is Half The Battle Challenges ------------ None Game ------ Seed EnergyReflectiveMapper Manual? 0 Play Time 01:49:04 Cumulative 31.1 hours Start 2023.04.09 @ 16:07:34 End 2023.04.09 @ 19:08:21 Sessions 1 Manual Loads 0 Difficulty Rogue Special Mode None Game No. 65 Rogue 65 Adventurer 0 Explorer 0 Win Type - Total 0 Types 0/0/0/0/0/0/0/0/0 Lore% 24 Gallery% 34 Achievement% 26 Wizard Run 0 Options --------- ASCII 0 Keyboard 0 Movement Mouse Keybinds 0 Fullscreen 1 Font 24/Smallcaps Map View 64x52 Tactical HUD 1 Map Filters NONE Filters NONE Steam 1 RUN: ce57c90d-6da7-42b7-aa3a-fb36de92e634